[Event "Titled Tuesday Blitz June 13 Early 2023"]
[White "Bodnaruk, Anastasia"]
[Black "Koridze, Lile"]
[WhiteFideId "4181751"]
[BlackFideId "13612514"]
[WhiteElo "2304"]
[BlackElo "2047"]
[Result "0-1"]
[Round "2"]
[TimeControl "180+2"]
[Date "2023.06.13"]
[WhiteClock "0:00:03"]
[BlackClock "0:00:04"]
[Board "152"]

1. e4 {[%clk 0:03:00]}  c5 {[%clk 0:02:59]} 2. Nc3 {[%clk 0:03:00]}  d6 {[%clk 0:02:58]} 3. Nge2 {[%clk 0:02:59]}  Nf6 {[%clk 0:02:58]} 4. d4 {[%clk 0:02:58]}  cxd4 {[%clk 0:02:58]} 5. Nxd4 {[%clk 0:02:59]}  a6 {[%clk 0:02:59]} 6. Nb3 {[%clk 0:02:59]}  e6 {[%clk 0:02:58]} 7. a4 {[%clk 0:02:44]}  Qc7 {[%clk 0:02:54]} 8. Be2 {[%clk 0:02:41]}  b6 {[%clk 0:02:51]} 9. Be3 {[%clk 0:02:38]}  Bb7 {[%clk 0:02:50]} 10. f3 {[%clk 0:02:38]}  Nbd7 {[%clk 0:02:50]} 11. g4 {[%clk 0:02:27]}  Nc5 {[%clk 0:02:44]} 12. g5 {[%clk 0:02:24]}  Nfd7 {[%clk 0:02:44]} 13. h4 {[%clk 0:02:23]}  Rc8 {[%clk 0:02:40]} 14. h5 {[%clk 0:02:22]}  Be7 {[%clk 0:02:40]} 15. Rg1 {[%clk 0:02:21]}  Ne5 {[%clk 0:02:38]} 16. f4 {[%clk 0:02:05]}  Nc6 {[%clk 0:02:26]} 17. g6 {[%clk 0:01:54]}  Bh4+ {[%clk 0:02:23]} 18. Kf1 {[%clk 0:01:54]}  hxg6 {[%clk 0:02:22]} 19. hxg6 {[%clk 0:01:52]}  Nb4 {[%clk 0:02:19]} 20. Bf3 {[%clk 0:01:38]}  Bf6 {[%clk 0:02:02]} 21. Nd4 {[%clk 0:01:28]}  Rh2 {[%clk 0:01:40]} 22. Bh5 {[%clk 0:01:12]}  Nxe4 {[%clk 0:01:24]} 23. gxf7+ {[%clk 0:01:10]}  Ke7 {[%clk 0:01:24]} 24. Be2 {[%clk 0:00:40]}  Nxc3 {[%clk 0:01:21]} 25. bxc3 {[%clk 0:00:40]}  Qxc3 {[%clk 0:01:21]} 26. Bf2 {[%clk 0:00:08]}  Rxf2+ {[%clk 0:01:12]} 27. Kxf2 {[%clk 0:00:09]}  Bxd4+ {[%clk 0:01:13]} 28. Kf1 {[%clk 0:00:08]}  Qh3+ {[%clk 0:01:05]} 29. Ke1 {[%clk 0:00:08]}  Bc3+ {[%clk 0:01:03]} 30. Kf2 {[%clk 0:00:08]}  Qh2+ {[%clk 0:00:54]} 31. Ke3 {[%clk 0:00:08]}  Nd5+ {[%clk 0:00:51]} 32. Kd3 {[%clk 0:00:08]}  Nxf4+ {[%clk 0:00:48]} 33. Ke3 {[%clk 0:00:08]}  Ng2+ {[%clk 0:00:17]} 34. Rxg2 {[%clk 0:00:04]}  Qxg2 {[%clk 0:00:16]} 35. Rb1 {[%clk 0:00:03]}  Qg5+ {[%clk 0:00:07]} 36. Kd3 {[%clk 0:00:03]}  Qf5+ {[%clk 0:00:04]} 37. Ke3 {[%clk 0:00:03]}  Qe4+ {[%clk 0:00:04]} 38. Kf2 {[%clk 0:00:03]}  Bd4+ {[%clk 0:00:05]} 39. Ke1 {[%clk 0:00:03]}  Be3 {[%clk 0:00:03]} 40. Qd3 {[%clk 0:00:03]}  Qh4+ {[%clk 0:00:03]} 41. Kd1 {[%clk 0:00:03]}  Qh1+ {[%clk 0:00:03]} 42. Bf1 {[%clk 0:00:03]}  Bf3+ {[%clk 0:00:03]} 43. Ke1 {[%clk 0:00:03]}  Qh4# {[%clk 0:00:04]} 0-1


[Site "https://www.chess.com"]

[Event "Titled Tuesday Blitz June 13 Early 2023"]
[White "Prem, Pranav"]
[Black "Lacasa Diaz, Jose Antonio"]
[WhiteFideId "30901057"]
[BlackFideId "2203375"]
[WhiteElo "1970"]
[BlackElo "2338"]
[Result "1-0"]
[Round "2"]
[TimeControl "180+2"]
[Date "2023.06.13"]
[WhiteClock "0:00:19"]
[BlackClock "0:00:33"]
[Board "154"]

1. d4 {[%clk 0:03:00]}  Nf6 {[%clk 0:02:57]} 2. c4 {[%clk 0:02:59]}  c5 {[%clk 0:02:57]} 3. d5 {[%clk 0:02:59]}  g6 {[%clk 0:02:57]} 4. Nc3 {[%clk 0:02:59]}  Bg7 {[%clk 0:02:57]} 5. Nf3 {[%clk 0:02:58]}  O-O {[%clk 0:02:54]} 6. e4 {[%clk 0:02:57]}  d6 {[%clk 0:02:53]} 7. Nd2 {[%clk 0:02:57]}  e6 {[%clk 0:02:53]} 8. Be2 {[%clk 0:02:56]}  exd5 {[%clk 0:02:51]} 9. cxd5 {[%clk 0:02:57]}  b6 {[%clk 0:02:46]} 10. O-O {[%clk 0:02:56]}  Ba6 {[%clk 0:02:44]} 11. Re1 {[%clk 0:02:18]}  Re8 {[%clk 0:02:23]} 12. Bxa6 {[%clk 0:02:04]}  Nxa6 {[%clk 0:02:24]} 13. Nc4 {[%clk 0:02:04]}  Nc7 {[%clk 0:02:16]} 14. a4 {[%clk 0:02:03]}  Rb8 {[%clk 0:02:04]} 15. Bf4 {[%clk 0:01:53]}  Bf8 {[%clk 0:02:04]} 16. e5 {[%clk 0:01:17]}  Nh5 {[%clk 0:01:58]} 17. Bg3 {[%clk 0:01:00]}  Nxg3 {[%clk 0:01:56]} 18. hxg3 {[%clk 0:01:01]}  dxe5 {[%clk 0:01:43]} 19. Nxe5 {[%clk 0:00:52]}  Qf6 {[%clk 0:01:33]} 20. Nd7 {[%clk 0:00:48]}  Qd4 {[%clk 0:01:03]} 21. Nxb8 {[%clk 0:00:46]}  Rxb8 {[%clk 0:01:02]} 22. Qxd4 {[%clk 0:00:38]}  cxd4 {[%clk 0:01:02]} 23. Ne2 {[%clk 0:00:38]}  Nxd5 {[%clk 0:00:56]} 24. Nxd4 {[%clk 0:00:38]}  Bc5 {[%clk 0:00:56]} 25. Rad1 {[%clk 0:00:30]}  Nb4 {[%clk 0:00:53]} 26. Nf3 {[%clk 0:00:23]}  Kg7 {[%clk 0:00:49]} 27. Rd7 {[%clk 0:00:21]}  a5 {[%clk 0:00:33]} 28. Ng5 {[%clk 0:00:19]} 1-0


[Site "https://www.chess.com"]

[Event "Titled Tuesday Blitz June 13 Early 2023"]
[White "Xie, Bryan"]
[Black "Budrewicz, Krzysztof"]
[WhiteFideId "30941296"]
[BlackFideId "1127950"]
[WhiteElo "2033"]
[BlackElo "2230"]
[Result "0-1"]
[Round "2"]
[TimeControl "180+2"]
[Date "2023.06.13"]
[WhiteClock "0:01:08"]
[BlackClock "0:02:35"]
[Board "155"]

1. e4 {[%clk 0:01:47]}  d5 {[%clk 0:02:58]} 2. exd5 {[%clk 0:01:45]}  Nf6 {[%clk 0:02:58]} 3. d4 {[%clk 0:01:45]}  Nxd5 {[%clk 0:02:59]} 4. c4 {[%clk 0:01:44]}  Nb6 {[%clk 0:02:59]} 5. Nf3 {[%clk 0:01:43]}  g6 {[%clk 0:02:59]} 6. Nc3 {[%clk 0:01:42]}  Bg7 {[%clk 0:02:59]} 7. Be3 {[%clk 0:01:42]}  O-O {[%clk 0:02:59]} 8. h3 {[%clk 0:01:43]}  Nc6 {[%clk 0:02:59]} 9. Be2 {[%clk 0:01:43]}  e5 {[%clk 0:02:59]} 10. d5 {[%clk 0:01:43]}  Ne7 {[%clk 0:03:00]} 11. O-O {[%clk 0:01:43]}  Nf5 {[%clk 0:03:00]} 12. Bc5 {[%clk 0:01:44]}  Re8 {[%clk 0:03:01]} 13. Nd2 {[%clk 0:01:44]}  Nd7 {[%clk 0:02:56]} 14. Be3 {[%clk 0:01:42]}  Nxe3 {[%clk 0:02:56]} 15. fxe3 {[%clk 0:01:43]}  Bh6 {[%clk 0:02:56]} 16. e4 {[%clk 0:01:40]}  Qg5 {[%clk 0:02:56]} 17. Bg4 {[%clk 0:01:38]}  Qxd2 {[%clk 0:02:50]} 18. Qf3 {[%clk 0:01:36]}  Qe3+ {[%clk 0:02:50]} 19. Qxe3 {[%clk 0:01:36]}  Bxe3+ {[%clk 0:02:50]} 20. Kh1 {[%clk 0:01:36]}  Nc5 {[%clk 0:02:45]} 21. Be2 {[%clk 0:01:35]}  a5 {[%clk 0:02:42]} 22. Nb5 {[%clk 0:01:33]}  Re7 {[%clk 0:02:42]} 23. d6 {[%clk 0:01:23]}  cxd6 {[%clk 0:02:42]} 24. Nxd6 {[%clk 0:01:24]}  Bd7 {[%clk 0:02:41]} 25. Rad1 {[%clk 0:01:22]}  Bc6 {[%clk 0:02:41]} 26. Rf6 {[%clk 0:01:13]}  Nxe4 {[%clk 0:02:38]} 27. Nxe4 {[%clk 0:01:13]}  Bxe4 {[%clk 0:02:38]} 28. Rfd6 {[%clk 0:01:13]}  Bd4 {[%clk 0:02:38]} 29. b3 {[%clk 0:01:08]}  Kg7 {[%clk 0:02:35]} 0-1


[Site "https://www.chess.com"]

[Event "Titled Tuesday Blitz June 13 Early 2023"]
[White "Melikhov, Evgeny V."]
[Black "Golubev, Mikhail"]
[WhiteFideId "4122046"]
[BlackFideId "14100983"]
[WhiteElo "2158"]
[BlackElo "2374"]
[Result "1/2-1/2"]
[Round "2"]
[TimeControl "180+2"]
[Date "2023.06.13"]
[WhiteClock "0:00:36"]
[BlackClock "0:00:15"]
[Board "157"]

1. d4 {[%clk 0:03:00]}  Nf6 {[%clk 0:02:59]} 2. c4 {[%clk 0:03:00]}  g6 {[%clk 0:02:57]} 3. Nc3 {[%clk 0:03:00]}  Bg7 {[%clk 0:02:58]} 4. e4 {[%clk 0:03:01]}  d6 {[%clk 0:02:58]} 5. f3 {[%clk 0:03:01]}  O-O {[%clk 0:02:58]} 6. Be3 {[%clk 0:03:02]}  a6 {[%clk 0:02:57]} 7. Nge2 {[%clk 0:03:00]}  b5 {[%clk 0:02:55]} 8. Ng3 {[%clk 0:02:56]}  c6 {[%clk 0:02:30]} 9. Qd2 {[%clk 0:02:55]}  Nbd7 {[%clk 0:02:29]} 10. Bh6 {[%clk 0:02:54]}  Bxh6 {[%clk 0:02:11]} 11. Qxh6 {[%clk 0:02:52]}  e5 {[%clk 0:02:11]} 12. d5 {[%clk 0:02:47]}  cxd5 {[%clk 0:01:58]} 13. cxd5 {[%clk 0:02:45]}  b4 {[%clk 0:01:51]} 14. Na4 {[%clk 0:02:32]}  Qa5 {[%clk 0:01:50]} 15. b3 {[%clk 0:02:30]}  Nc5 {[%clk 0:01:49]} 16. Nxc5 {[%clk 0:02:29]}  Qxc5 {[%clk 0:01:48]} 17. Rc1 {[%clk 0:02:25]}  Qd4 {[%clk 0:01:46]} 18. Qd2 {[%clk 0:02:22]}  Qxd2+ {[%clk 0:01:35]} 19. Kxd2 {[%clk 0:02:22]}  Bd7 {[%clk 0:01:35]} 20. Be2 {[%clk 0:02:02]}  Rfc8 {[%clk 0:01:35]} 21. Rxc8+ {[%clk 0:02:01]}  Rxc8 {[%clk 0:01:34]} 22. Rc1 {[%clk 0:01:58]}  Rxc1 {[%clk 0:01:33]} 23. Kxc1 {[%clk 0:01:58]}  a5 {[%clk 0:01:23]} 24. Nf1 {[%clk 0:01:54]}  Ne8 {[%clk 0:01:22]} 25. Ne3 {[%clk 0:01:47]}  Nc7 {[%clk 0:01:21]} 26. Kb2 {[%clk 0:01:42]}  Kf8 {[%clk 0:01:14]} 27. a3 {[%clk 0:01:42]}  bxa3+ {[%clk 0:01:04]} 28. Kxa3 {[%clk 0:01:42]}  Ke7 {[%clk 0:01:04]} 29. g4 {[%clk 0:01:13]}  h6 {[%clk 0:00:35]} 30. h4 {[%clk 0:01:13]}  Kd8 {[%clk 0:00:26]} 31. b4 {[%clk 0:00:36]}  axb4+ {[%clk 0:00:25]} 32. Kxb4 {[%clk 0:00:37]}  Ke7 {[%clk 0:00:23]} 33. Kc3 {[%clk 0:00:37]}  g5 {[%clk 0:00:15]} 34. h5 {[%clk 0:00:36]} 1/2-1/2


[Site "https://www.chess.com"]

[Event "Titled Tuesday Blitz June 13 Early 2023"]
[White "FREDERICKtheMATE"]
[Black "Safin, Robert"]
[BlackFideId "34189120"]
[WhiteElo "2370"]
[BlackElo "2341"]
[Result "0-1"]
[Round "2"]
[TimeControl "180+2"]
[Date "2023.06.13"]
[WhiteClock "0:01:30"]
[BlackClock "0:00:09"]
[Board "159"]

1. Nf3 {[%clk 0:03:00]}  d5 {[%clk 0:02:22]} 2. g3 {[%clk 0:02:59]}  c6 {[%clk 0:02:21]} 3. Bg2 {[%clk 0:03:00]}  Bf5 {[%clk 0:02:19]} 4. O-O {[%clk 0:03:00]}  Nd7 {[%clk 0:02:19]} 5. b3 {[%clk 0:03:00]}  e6 {[%clk 0:02:18]} 6. Bb2 {[%clk 0:03:00]}  Ngf6 {[%clk 0:02:19]} 7. d3 {[%clk 0:03:00]}  Be7 {[%clk 0:02:15]} 8. Nbd2 {[%clk 0:03:01]}  h6 {[%clk 0:02:13]} 9. h3 {[%clk 0:03:00]}  O-O {[%clk 0:02:13]} 10. Re1 {[%clk 0:03:01]}  a5 {[%clk 0:02:12]} 11. a3 {[%clk 0:02:59]}  Bh7 {[%clk 0:02:12]} 12. e4 {[%clk 0:02:55]}  Qb6 {[%clk 0:02:12]} 13. e5 {[%clk 0:02:51]}  Ne8 {[%clk 0:02:12]} 14. d4 {[%clk 0:02:47]}  Nc7 {[%clk 0:02:07]} 15. c3 {[%clk 0:02:47]}  c5 {[%clk 0:02:04]} 16. Qe2 {[%clk 0:02:38]}  Qa6 {[%clk 0:01:53]} 17. Qxa6 {[%clk 0:02:34]}  Nxa6 {[%clk 0:01:52]} 18. Bf1 {[%clk 0:02:33]}  Rfc8 {[%clk 0:01:46]} 19. Bb5 {[%clk 0:02:30]}  Nb6 {[%clk 0:01:41]} 20. Rac1 {[%clk 0:02:28]}  Nc7 {[%clk 0:01:41]} 21. Bf1 {[%clk 0:02:26]}  Nd7 {[%clk 0:01:30]} 22. a4 {[%clk 0:02:17]}  cxd4 {[%clk 0:01:25]} 23. cxd4 {[%clk 0:02:18]}  Bb4 {[%clk 0:01:24]} 24. Bc3 {[%clk 0:02:16]}  Ba3 {[%clk 0:01:17]} 25. Ra1 {[%clk 0:02:16]}  Be7 {[%clk 0:01:16]} 26. Rec1 {[%clk 0:02:16]}  Nb8 {[%clk 0:01:12]} 27. Bb5 {[%clk 0:02:12]}  Nxb5 {[%clk 0:01:06]} 28. axb5 {[%clk 0:02:13]}  b6 {[%clk 0:01:06]} 29. Ne1 {[%clk 0:02:07]}  Nd7 {[%clk 0:01:00]} 30. f4 {[%clk 0:02:05]}  Rc7 {[%clk 0:00:47]} 31. Kf2 {[%clk 0:02:00]}  Rac8 {[%clk 0:00:46]} 32. Bb2 {[%clk 0:01:59]}  Bb4 {[%clk 0:00:44]} 33. Rxc7 {[%clk 0:01:50]}  Rxc7 {[%clk 0:00:45]} 34. Rc1 {[%clk 0:01:49]}  Rxc1 {[%clk 0:00:43]} 35. Bxc1 {[%clk 0:01:50]}  Bc3 {[%clk 0:00:32]} 36. Ke3 {[%clk 0:01:49]}  f6 {[%clk 0:00:19]} 37. Nd3 {[%clk 0:01:48]}  Kf7 {[%clk 0:00:15]} 38. Bb2 {[%clk 0:01:45]}  Bxd3 {[%clk 0:00:13]} 39. Bxc3 {[%clk 0:01:45]}  Bxb5 {[%clk 0:00:14]} 40. b4 {[%clk 0:01:44]}  a4 {[%clk 0:00:14]} 41. Nb1 {[%clk 0:01:44]}  Bc4 {[%clk 0:00:12]} 42. Na3 {[%clk 0:01:43]}  b5 {[%clk 0:00:13]} 43. g4 {[%clk 0:01:42]}  fxe5 {[%clk 0:00:10]} 44. fxe5 {[%clk 0:01:41]}  g5 {[%clk 0:00:10]} 45. Kf3 {[%clk 0:01:39]}  Nb6 {[%clk 0:00:09]} 46. Kg3 {[%clk 0:01:38]}  Be2 {[%clk 0:00:07]} 47. h4 {[%clk 0:01:38]}  gxh4+ {[%clk 0:00:06]} 48. Kxh4 {[%clk 0:01:38]}  Kg6 {[%clk 0:00:07]} 49. Bd2 {[%clk 0:01:37]}  Nc4 {[%clk 0:00:06]} 50. Bc1 {[%clk 0:01:36]}  Nxa3 {[%clk 0:00:04]} 51. Bxa3 {[%clk 0:01:35]}  h5 {[%clk 0:00:03]} 52. gxh5+ {[%clk 0:01:34]}  Bxh5 {[%clk 0:00:04]} 53. Kg3 {[%clk 0:01:32]}  Kf5 {[%clk 0:00:04]} 54. Kf2 {[%clk 0:01:33]}  Ke4 {[%clk 0:00:05]} 55. Ke1 {[%clk 0:01:31]}  Kxd4 {[%clk 0:00:04]} 56. Bb2+ {[%clk 0:01:29]}  Kc4 {[%clk 0:00:04]} 57. Kd2 {[%clk 0:01:30]}  Kxb4 {[%clk 0:00:04]} 58. Kc2 {[%clk 0:01:30]}  Bg6+ {[%clk 0:00:04]} 59. Kc1 {[%clk 0:01:30]}  Kb3 {[%clk 0:00:04]} 60. Bd4 {[%clk 0:01:30]}  b4 {[%clk 0:00:03]} 61. Kd1 {[%clk 0:01:30]}  Ka2 {[%clk 0:00:04]} 62. Kd2 {[%clk 0:01:29]}  b3 {[%clk 0:00:04]} 63. Kc1 {[%clk 0:01:30]}  a3 {[%clk 0:00:05]} 64. Bc3 {[%clk 0:01:29]}  b2+ {[%clk 0:00:06]} 65. Bxb2 {[%clk 0:01:29]}  axb2+ {[%clk 0:00:07]} 66. Kd2 {[%clk 0:01:29]}  b1=Q {[%clk 0:00:07]} 67. Kc3 {[%clk 0:01:29]}  Qd3+ {[%clk 0:00:08]} 68. Kb4 {[%clk 0:01:29]}  Qc4+ {[%clk 0:00:08]} 69. Ka5 {[%clk 0:01:29]}  d4 {[%clk 0:00:08]} 70. Kb6 {[%clk 0:01:29]}  d3 {[%clk 0:00:09]} 71. Kb7 {[%clk 0:01:30]}  d2 {[%clk 0:00:09]} 0-1


[Site "https://www.chess.com"]

[Event "Titled Tuesday Blitz June 13 Early 2023"]
[White "Orujov2008"]
[Black "Goldin, Roman"]
[BlackFideId "2803860"]
[WhiteElo "2528"]
[BlackElo "2312"]
[Result "1/2-1/2"]
[Round "2"]
[TimeControl "180+2"]
[Date "2023.06.13"]
[WhiteClock "0:00:06"]
[BlackClock "0:00:08"]
[Board "166"]

1. e4 {[%clk 0:03:00]}  e5 {[%clk 0:02:59]} 2. Nf3 {[%clk 0:03:01]}  Nc6 {[%clk 0:02:59]} 3. Bb5 {[%clk 0:03:01]}  a6 {[%clk 0:03:00]} 4. Ba4 {[%clk 0:03:01]}  Nf6 {[%clk 0:03:00]} 5. d4 {[%clk 0:03:01]}  b5 {[%clk 0:02:54]} 6. Bb3 {[%clk 0:02:58]}  exd4 {[%clk 0:02:44]} 7. Ng5 {[%clk 0:02:45]}  d5 {[%clk 0:02:43]} 8. exd5 {[%clk 0:02:45]}  Na5 {[%clk 0:02:38]} 9. Qxd4 {[%clk 0:02:42]}  Nxb3 {[%clk 0:02:37]} 10. axb3 {[%clk 0:02:42]}  Qxd5 {[%clk 0:02:36]} 11. Qxd5 {[%clk 0:02:35]}  Nxd5 {[%clk 0:02:37]} 12. O-O {[%clk 0:02:36]}  Be7 {[%clk 0:02:36]} 13. Nc3 {[%clk 0:02:34]}  Nxc3 {[%clk 0:02:34]} 14. bxc3 {[%clk 0:02:35]}  O-O {[%clk 0:02:33]} 15. Be3 {[%clk 0:02:32]}  Bf6 {[%clk 0:02:29]} 16. Ne4 {[%clk 0:02:32]}  Be7 {[%clk 0:02:12]} 17. Bc5 {[%clk 0:02:31]}  Re8 {[%clk 0:02:10]} 18. Bxe7 {[%clk 0:02:27]}  Rxe7 {[%clk 0:02:10]} 19. Rfe1 {[%clk 0:02:27]}  Bf5 {[%clk 0:01:58]} 20. Nc5 {[%clk 0:02:17]}  Rxe1+ {[%clk 0:01:56]} 21. Rxe1 {[%clk 0:02:18]}  Bxc2 {[%clk 0:01:55]} 22. Re7 {[%clk 0:02:18]}  a5 {[%clk 0:01:53]} 23. Re2 {[%clk 0:01:33]}  Rd8 {[%clk 0:01:29]} 24. f3 {[%clk 0:01:29]}  Bd1 {[%clk 0:01:25]} 25. Re7 {[%clk 0:01:21]}  a4 {[%clk 0:01:12]} 26. bxa4 {[%clk 0:01:16]}  bxa4 {[%clk 0:01:12]} 27. Rxc7 {[%clk 0:01:17]}  Ra8 {[%clk 0:01:12]} 28. Rd7 {[%clk 0:01:10]}  Bc2 {[%clk 0:00:41]} 29. Rd2 {[%clk 0:01:05]}  Bb3 {[%clk 0:00:35]} 30. Kf2 {[%clk 0:00:58]}  g5 {[%clk 0:00:32]} 31. h3 {[%clk 0:00:51]}  Ra5 {[%clk 0:00:29]} 32. Nxb3 {[%clk 0:00:46]}  axb3 {[%clk 0:00:30]} 33. Rd8+ {[%clk 0:00:47]}  Kg7 {[%clk 0:00:29]} 34. Rb8 {[%clk 0:00:48]}  Ra2+ {[%clk 0:00:29]} 35. Kg3 {[%clk 0:00:40]}  Rb2 {[%clk 0:00:23]} 36. c4 {[%clk 0:00:38]}  h5 {[%clk 0:00:22]} 37. c5 {[%clk 0:00:37]}  Kg6 {[%clk 0:00:22]} 38. c6 {[%clk 0:00:35]}  h4+ {[%clk 0:00:22]} 39. Kh2 {[%clk 0:00:35]}  Rc2 {[%clk 0:00:19]} 40. Rb6 {[%clk 0:00:33]}  Kf5 {[%clk 0:00:16]} 41. Rb5+ {[%clk 0:00:29]}  Kf6 {[%clk 0:00:15]} 42. Rxb3 {[%clk 0:00:28]}  Rxc6 {[%clk 0:00:14]} 43. Rb5 {[%clk 0:00:29]}  Kg6 {[%clk 0:00:14]} 44. Rb2 {[%clk 0:00:28]}  Rc1 {[%clk 0:00:13]} 45. Re2 {[%clk 0:00:27]}  Kf5 {[%clk 0:00:13]} 46. g3 {[%clk 0:00:27]}  hxg3+ {[%clk 0:00:10]} 47. Kxg3 {[%clk 0:00:28]}  f6 {[%clk 0:00:11]} 48. Rb2 {[%clk 0:00:25]}  Rc4 {[%clk 0:00:11]} 49. Rb5+ {[%clk 0:00:26]}  Kg6 {[%clk 0:00:11]} 50. Kf2 {[%clk 0:00:26]}  Rc2+ {[%clk 0:00:11]} 51. Kg3 {[%clk 0:00:26]}  Rc3 {[%clk 0:00:11]} 52. Rb8 {[%clk 0:00:26]}  Ra3 {[%clk 0:00:10]} 53. Rc8 {[%clk 0:00:25]}  Kf5 {[%clk 0:00:10]} 54. Rd8 {[%clk 0:00:25]}  Kg6 {[%clk 0:00:10]} 55. Rg8+ {[%clk 0:00:25]}  Kf5 {[%clk 0:00:10]} 56. Rb8 {[%clk 0:00:26]}  Kg6 {[%clk 0:00:10]} 57. Rb6 {[%clk 0:00:21]}  Rc3 {[%clk 0:00:09]} 58. Kg4 {[%clk 0:00:20]}  Rc4+ {[%clk 0:00:08]} 59. Kg3 {[%clk 0:00:20]}  Rc3 {[%clk 0:00:08]} 60. Rd6 {[%clk 0:00:20]}  Rb3 {[%clk 0:00:08]} 61. Kg2 {[%clk 0:00:19]}  Rc3 {[%clk 0:00:08]} 62. Kf2 {[%clk 0:00:18]}  Rc2+ {[%clk 0:00:08]} 63. Kg3 {[%clk 0:00:19]}  Rc3 {[%clk 0:00:08]} 64. Ra6 {[%clk 0:00:19]}  Rb3 {[%clk 0:00:08]} 65. Ra8 {[%clk 0:00:20]}  f5 {[%clk 0:00:08]} 66. Ra6+ {[%clk 0:00:19]}  Kh5 {[%clk 0:00:08]} 67. Ra2 {[%clk 0:00:15]}  f4+ {[%clk 0:00:08]} 68. Kg2 {[%clk 0:00:14]}  Rc3 {[%clk 0:00:08]} 69. Rd2 {[%clk 0:00:14]}  Rb3 {[%clk 0:00:08]} 70. Re2 {[%clk 0:00:14]}  Kh4 {[%clk 0:00:08]} 71. Rd2 {[%clk 0:00:13]}  Rc3 {[%clk 0:00:08]} 72. Re2 {[%clk 0:00:14]}  Rb3 {[%clk 0:00:08]} 73. Rc2 {[%clk 0:00:14]}  Rd3 {[%clk 0:00:08]} 74. Ra2 {[%clk 0:00:12]}  Rc3 {[%clk 0:00:08]} 75. Rf2 {[%clk 0:00:10]}  Rd3 {[%clk 0:00:09]} 76. Re2 {[%clk 0:00:10]}  Re3 {[%clk 0:00:08]} 77. Rd2 {[%clk 0:00:05]}  Rc3 {[%clk 0:00:08]} 78. Rb2 {[%clk 0:00:05]}  Rd3 {[%clk 0:00:08]} 79. Ra2 {[%clk 0:00:06]}  Rc3 {[%clk 0:00:08]} 80. Re2 {[%clk 0:00:06]}  Re3 {[%clk 0:00:08]} 81. Rc2 {[%clk 0:00:06]}  Rd3 {[%clk 0:00:08]} 82. Re2 {[%clk 0:00:06]}  Re3 {[%clk 0:00:08]} 1/2-1/2


[Site "https://www.chess.com"]

[Event "Titled Tuesday Blitz June 13 Early 2023"]
[White "Balla, Tamas-Kristof"]
[Black "Bashirli, Saadat"]
[WhiteFideId "1208497"]
[BlackFideId "13429990"]
[WhiteElo "2334"]
[BlackElo "1408"]
[Result "0-1"]
[Round "2"]
[TimeControl "180+2"]
[Date "2023.06.13"]
[WhiteClock "0:00:20"]
[BlackClock "0:00:11"]
[Board "176"]

1. e4 {[%clk 0:03:00]}  c5 {[%clk 0:02:58]} 2. Nf3 {[%clk 0:03:00]}  g6 {[%clk 0:02:58]} 3. c3 {[%clk 0:02:52]}  Nf6 {[%clk 0:02:57]} 4. e5 {[%clk 0:02:52]}  Nd5 {[%clk 0:02:56]} 5. d4 {[%clk 0:02:52]}  cxd4 {[%clk 0:02:56]} 6. cxd4 {[%clk 0:02:53]}  d6 {[%clk 0:02:54]} 7. a3 {[%clk 0:02:45]}  Bg7 {[%clk 0:02:51]} 8. Bd3 {[%clk 0:02:43]}  O-O {[%clk 0:02:48]} 9. O-O {[%clk 0:02:42]}  Nc6 {[%clk 0:02:46]} 10. Re1 {[%clk 0:02:36]}  Bg4 {[%clk 0:02:43]} 11. Be4 {[%clk 0:02:28]}  e6 {[%clk 0:02:15]} 12. Bxd5 {[%clk 0:01:59]}  exd5 {[%clk 0:02:16]} 13. h3 {[%clk 0:01:44]}  Bxf3 {[%clk 0:02:07]} 14. Qxf3 {[%clk 0:01:45]}  Nxd4 {[%clk 0:02:05]} 15. Qxd5 {[%clk 0:01:43]}  Nc2 {[%clk 0:01:58]} 16. exd6 {[%clk 0:01:08]}  Nxe1 {[%clk 0:01:47]} 17. Bg5 {[%clk 0:01:07]}  Qd7 {[%clk 0:01:38]} 18. Nc3 {[%clk 0:00:56]}  Nc2 {[%clk 0:01:34]} 19. Rd1 {[%clk 0:00:52]}  h6 {[%clk 0:01:19]} 20. Bh4 {[%clk 0:00:49]}  g5 {[%clk 0:01:18]} 21. Bg3 {[%clk 0:00:49]}  Rfe8 {[%clk 0:01:09]} 22. Ne4 {[%clk 0:00:48]}  Qe6 {[%clk 0:00:48]} 23. d7 {[%clk 0:00:41]}  Qxe4 {[%clk 0:00:37]} 24. dxe8=Q+ {[%clk 0:00:41]}  Rxe8 {[%clk 0:00:32]} 25. Qb5 {[%clk 0:00:35]}  Nd4 {[%clk 0:00:29]} 26. Qc5 {[%clk 0:00:31]}  b6 {[%clk 0:00:23]} 27. Qc7 {[%clk 0:00:27]}  Ne2+ {[%clk 0:00:20]} 28. Kh2 {[%clk 0:00:27]}  Nxg3 {[%clk 0:00:20]} 29. fxg3 {[%clk 0:00:26]}  Qe3 {[%clk 0:00:15]} 30. Rd8 {[%clk 0:00:22]}  Rxd8 {[%clk 0:00:12]} 31. Qxd8+ {[%clk 0:00:23]}  Kh7 {[%clk 0:00:13]} 32. Qd1 {[%clk 0:00:23]}  Be5 {[%clk 0:00:11]} 33. Qc2+ {[%clk 0:00:24]}  Kg7 {[%clk 0:00:11]} 34. Kh1 {[%clk 0:00:20]}  Qe1+ {[%clk 0:00:11]} 35. Kh2 {[%clk 0:00:20]}  Bxg3# {[%clk 0:00:11]} 0-1


[Site "https://www.chess.com"]

[Event "Titled Tuesday Blitz June 13 Early 2023"]
[White "drdaro"]
[Black "Berezin, Viktor"]
[BlackFideId "14107872"]
[WhiteElo "2327"]
[BlackElo "2310"]
[Result "0-1"]
[Round "2"]
[TimeControl "180+2"]
[Date "2023.06.13"]
[WhiteClock "0:00:02"]
[BlackClock "0:00:31"]
[Board "178"]

1. d4 {[%clk 0:02:51]}  Nf6 {[%clk 0:02:59]} 2. Nf3 {[%clk 0:02:50]}  g6 {[%clk 0:02:58]} 3. g3 {[%clk 0:02:45]}  Bg7 {[%clk 0:02:58]} 4. Bg2 {[%clk 0:02:46]}  O-O {[%clk 0:02:58]} 5. O-O {[%clk 0:02:44]}  d6 {[%clk 0:02:59]} 6. Re1 {[%clk 0:02:43]}  Nc6 {[%clk 0:02:57]} 7. e4 {[%clk 0:02:43]}  e5 {[%clk 0:02:57]} 8. c3 {[%clk 0:02:13]}  Re8 {[%clk 0:02:43]} 9. Bg5 {[%clk 0:02:03]}  h6 {[%clk 0:02:41]} 10. Bxf6 {[%clk 0:02:01]}  Qxf6 {[%clk 0:02:40]} 11. d5 {[%clk 0:01:56]}  Nb8 {[%clk 0:02:32]} 12. Nbd2 {[%clk 0:01:57]}  Qe7 {[%clk 0:02:30]} 13. Qc2 {[%clk 0:01:31]}  c5 {[%clk 0:02:29]} 14. dxc6 {[%clk 0:01:28]}  bxc6 {[%clk 0:02:29]} 15. Rad1 {[%clk 0:01:29]}  Be6 {[%clk 0:02:27]} 16. Qd3 {[%clk 0:01:20]}  Nd7 {[%clk 0:02:17]} 17. Nb3 {[%clk 0:01:00]}  d5 {[%clk 0:02:15]} 18. exd5 {[%clk 0:00:55]}  cxd5 {[%clk 0:02:15]} 19. Qa6 {[%clk 0:00:27]}  e4 {[%clk 0:01:50]} 20. Nfd4 {[%clk 0:00:23]}  Bg4 {[%clk 0:01:50]} 21. Rc1 {[%clk 0:00:19]}  Ne5 {[%clk 0:01:50]} 22. Nc6 {[%clk 0:00:13]}  Qf6 {[%clk 0:01:43]} 23. Nbd4 {[%clk 0:00:13]}  Nd3 {[%clk 0:01:35]} 24. Rf1 {[%clk 0:00:10]}  Nxc1 {[%clk 0:01:32]} 25. Rxc1 {[%clk 0:00:11]}  e3 {[%clk 0:01:32]} 26. fxe3 {[%clk 0:00:11]}  Rxe3 {[%clk 0:01:32]} 27. Rf1 {[%clk 0:00:11]}  Qd6 {[%clk 0:01:24]} 28. Qb7 {[%clk 0:00:05]}  Rf8 {[%clk 0:01:24]} 29. Bxd5 {[%clk 0:00:04]}  Kh8 {[%clk 0:01:05]} 30. Rxf7 {[%clk 0:00:03]}  Qxd5 {[%clk 0:00:32]} 31. Rxg7 {[%clk 0:00:02]}  Re1# {[%clk 0:00:31]} 0-1


[Site "https://www.chess.com"]